fUST/lending_fUST_20240515
["ID","MTS","AMOUNT","RATE_DAILY","PERIOD"]
[327033846,1715727038717,-500.0,0.00019995,2]
[327033848,1715727038726,-500.0,0.00019995,2]
[327033850,1715727038735,-500.0,0.00019995,2]
[327033852,1715727038744,-500.0,0.00019995,2]
[327033854,1715727038753,-500.0,0.00019995,2]
[327033856,1715727038763,-500.0,0.00019995,2]
[327033858,1715727038772,-500.0,0.00019995,2]
[327033859,1715727038781,-500.0,0.00019995,2]
[327033861,1715727038790,-500.0,0.00019995,2]
[327033864,1715727038800,-500.0,0.00019995,2]
[327033865,1715727038809,-500.0,0.00019995,2]
[327033868,1715727038818,-500.0,0.00019995,2]
[327033870,1715727038828,-500.0,0.00019995,2]
[327033872,1715727038837,-500.0,0.00019995,2]
[327033873,1715727038846,-500.0,0.00019995,2]
[327033876,1715727038856,-500.0,0.00019995,2]
[327033878,1715727038866,-500.0,0.00019995,2]
[327033879,1715727038875,-500.0,0.00019995,2]
[327033881,1715727038885,-500.0,0.00019995,2]
[327033884,1715727038895,-500.0,0.00019995,2]
[327033885,1715727038905,-500.0,0.00019995,2]
[327033888,1715727038915,-500.0,0.00019995,2]
[327033890,1715727038924,-500.0,0.00019995,2]
[327033891,1715727038934,-500.0,0.00019995,2]
[327033894,1715727038944,-500.0,0.00019995,2]
[327033896,1715727038954,-500.0,0.00019995,2]
[327033898,1715727038964,-500.0,0.00019995,2]
[327033900,1715727038973,-373.01326671,0.00019998,2]
[327033902,1715727038984,-11042.9167761,0.00019998,2]
[327033904,1715727038993,-3000.0,0.00019999,2]
[327033906,1715727039004,-1947.17796706,0.00019999,2]
[327033908,1715727039013,-2590.52789876,0.0002,2]
[327033909,1715727039023,-499.86264339,0.0002,2]
[327033911,1715727039032,-67982.2825381,0.0002,2]
[327033913,1715727039042,-154.84515485,0.0002,2]
[327033915,1715727039051,-200.0,0.0002,2]
[327033917,1715727039061,-500.0,0.0002,2]
[327033920,1715727039071,-501.9507498,0.0002,2]
[327033921,1715727039080,-179.0,0.00020137,2]
[327033923,1715727039090,-209.282183,0.00020414,2]
[327033925,1715727039100,-443.79768207,0.00020911,2]
[327033927,1715727039110,-2654.03042876,0.00020912,2]
[327033930,1715727039123,-384.27086794,0.00021,2]
[327033932,1715727039132,-20140.57332672,0.00021,2]
[327033934,1715727039142,-1513.6,0.00021356,2]
[327033935,1715727039151,-537.8,0.00021365,2]
[327033938,1715727039161,-3962.04134365,0.00021624,2]
[327033940,1715727039171,-1513.6,0.00022832,2]
[327033942,1715727039180,-537.8,0.0002284,2]
[327033944,1715727039189,-209.282183,0.00022976,2]
[327033945,1715727039199,-489.398,0.00023342,2]
[327033947,1715727039208,-937.76913774,0.000239,2]
[327034043,1715727040282,-315.69929942,0.000239,2]
[327034045,1715727040291,-27.1056987,0.00024308,3]
[327034361,1715727043103,-500.0,0.00019995,2]
[327034363,1715727043113,-500.0,0.00019995,2]
[327034365,1715727043122,-500.0,0.00019995,2]
[327034367,1715727043132,-569.22410597,0.00019995,2]
[327034369,1715727043141,-1486.4943013,0.00024308,3]
[327034371,1715727043150,-537.8,0.00024315,3]
[327034373,1715727043159,-156.73011156,0.00024802,2]
[327034375,1715727043169,-758.819217,0.00025,2]
[327034377,1715727043178,-400.46869514,0.00025,2]
[327034379,1715727043188,-500.0,0.00025,2]
[327034381,1715727043197,-209.282183,0.00025539,2]
[327034383,1715727043206,-1513.6,0.00025784,3]
[327034385,1715727043216,-537.8,0.0002579,3]
[327034387,1715727043225,-151.0,0.0002579,2]
[327034389,1715727043234,-244.657081,0.0002579,2]
[327034391,1715727043243,-189.876482,0.0002579,2]
[327034393,1715727043253,-244.657081,0.0002579,2]
[327034395,1715727043262,-189.876482,0.0002579,2]
[327034397,1715727043271,-4581.62626985,0.000259,2]
[327034399,1715727043281,-150.83408251,0.00026632,4]
[327034401,1715727043290,-187.03428599,0.00027,2]
[327034403,1715727043299,-171.27840548,0.00027123,3]
[327034405,1715727043309,-360.746781,0.00027123,2]
[327034407,1715727043318,-150.83408251,0.00027175,2]
[327034409,1715727043332,-34.35829849,0.0002725,2]
[327034440,1715727043721,-13.90047754,0.0002725,2]
[327034441,1715727043733,-488.07179638,0.0002725,2]
[327034625,1715727046224,-2119.39353458,0.00020913,2]
[327034628,1715727046235,-1110.68532937,0.0002725,2]
[327034630,1715727046246,-1513.6,0.0002726,3]
[327034632,1715727046255,-281.0,0.000273,2]
[327034634,1715727046265,-160.0,0.000273,2]
[327034636,1715727046275,-2000.0,0.000273,2]
[327034637,1715727046284,-152.1609928,0.00027342,2]
[327034640,1715727046294,-1000.0,0.00027397,2]
[327034642,1715727046304,-1000.0,0.00027397,2]
[327034644,1715727046314,-1000.0,0.00027397,2]
[327034646,1715727046325,-1000.0,0.00027397,2]
[327034647,1715727046336,-1000.0,0.00027397,2]
[327034649,1715727046346,-1000.0,0.00027397,2]
[327034651,1715727046356,-1000.0,0.00027397,2]
[327034653,1715727046365,-1000.0,0.00027397,2]
[327034655,1715727046375,-462.77994705,0.00027397,2]
[327034657,1715727046384,-151.0,0.00027397,2]
[327034659,1715727046394,-9255.726664,0.000274,3]
[327035312,1715727053639,-313.7,0.0001988,2]
[327035315,1715727053662,-500.0,0.00019995,2]
[327035319,1715727053684,-500.0,0.00019995,2]
[327035322,1715727053707,-500.0,0.00019995,2]
[327035325,1715727053729,-500.0,0.00019995,2]
[327035328,1715727053751,-500.0,0.00019995,2]
[327035332,1715727053772,-500.0,0.00019995,2]
[327035335,1715727053796,-500.0,0.00019995,2]
[327035337,1715727053818,-182.51359595,0.00019995,2]
[327035338,1715727053839,-500.0,0.00019995,2]
[327035339,1715727053861,-500.0,0.00019995,2]
[327035340,1715727053884,-500.0,0.00019995,2]
[327035547,1715727088944,213.16828521,0.0002,2]
[327035548,1715727106132,2785.33811884,0.0002,2]
[327035549,1715727375350,881.67,0.00010959,2]
[327035550,1715727671403,157.27495146,9.999e-05,2]
[327035551,1715727756484,24900.0,0.00016819,2]
[327035552,1715727769333,250.0,0.00016803,2]
[327035553,1715727919011,525.4395681,0.00016786,2]
[327035554,1715728178096,260.91918383,9.999e-05,2]
[327035555,1715728190776,1001.8076623,0.00016554,2]
[327035556,1715728212055,5485.7956276,0.00016749,2]
[327035606,1715728232291,-157.27495146,0.00017036,2]
[327035608,1715728232301,-2595.37774588,0.00017037,2]
[327035610,1715728232310,-710.491826,0.00017162,2]
[327035612,1715728232319,-10445.8349353,0.00018398,2]
[327035614,1715728232328,-239.88539167,0.00018398,2]
[327035616,1715728232338,-154.84515485,0.00018399,2]
[327035618,1715728232347,-59336.07404587,0.00018399,2]
[327035620,1715728232356,-419.19600137,0.000184,2]
[327035622,1715728232365,-9493.97922932,0.00018401,2]
[327035624,1715728232377,-516.20767634,0.00018401,2]
[327035998,1715728236318,513.01214525,9.999e-05,2]
[327036298,1715728239196,-29978.44615758,0.00018401,2]
[327036301,1715728239216,-61340.33705945,0.00018401,2]
[327036303,1715728239231,-355.245913,0.00018637,2]
[327036306,1715728239248,-2306.90156357,0.000189,2]
[327036309,1715728239266,-500.0,0.00019178,2]
[327036311,1715728239279,-500.0,0.00019178,2]
[327036313,1715728239291,-500.0,0.00019178,2]
[327036316,1715728239308,-500.0,0.00019178,2]
[327036318,1715728239324,-500.0,0.00019178,2]
[327036321,1715728239338,-500.0,0.00019178,2]
[327036324,1715728239354,-500.0,0.00019178,2]
[327036326,1715728239368,-500.0,0.00019178,2]
[327036328,1715728239382,-294.07355186,0.00019178,2]
[327036331,1715728239397,-500.0,0.00019178,2]
[327036333,1715728239411,-500.0,0.00019178,2]
[327036336,1715728239427,-500.0,0.00019178,2]
[327036338,1715728239440,-245.73804089,0.00019178,2]
[327036339,1715728239453,-500.0,0.00019178,2]
[327036341,1715728239467,-500.0,0.00019178,2]
[327036343,1715728239480,-500.0,0.00019178,2]
[327036345,1715728239495,-500.0,0.00019178,2]
[327036348,1715728239509,-500.0,0.00019178,2]
[327036350,1715728239525,-366.38861472,0.00019178,2]
[327036352,1715728239539,-500.0,0.00019178,2]
[327036354,1715728239553,-500.0,0.00019178,2]
[327036356,1715728239572,-500.0,0.00019178,2]
[327036358,1715728239586,-500.0,0.00019178,2]
[327036360,1715728239600,-500.0,0.00019178,2]
[327036362,1715728239614,-500.0,0.00019178,2]
[327036364,1715728239628,-500.0,0.00019178,2]
[327036366,1715728239642,-500.0,0.00019178,2]
[327036368,1715728239655,-500.0,0.00019178,2]
[327036370,1715728239672,-500.0,0.00019178,2]
[327036372,1715728239686,-500.0,0.00019178,2]
[327036374,1715728239700,-344.84058411,0.00019178,2]
[327036376,1715728239715,-500.0,0.00019178,2]
[327036378,1715728239728,-182.94031736,0.00019178,2]
[327036380,1715728239741,-172.794404,0.00019178,2]
[327036383,1715728239758,-287.5,0.00019831,2]
[327036385,1715728239772,-718.48788165,0.00019998,2]
[327036387,1715728239785,-1579.70306251,0.00019998,2]
[327036389,1715728239798,-447.49704798,0.00019998,2]
[327036391,1715728239815,-65139.33064063,0.0002,2]
[327036394,1715728239832,-20945.66982105,0.0002,2]
[327036396,1715728239850,-1279.72643616,0.0002,2]
[327036483,1715728240889,-399.93121533,0.0002,2]
[327036709,1715728243345,-25337.51904875,0.0002,2]
[327036711,1715728243355,-154.84515485,0.0002,2]
[327036713,1715728243364,-151.34866798,0.0002,2]
[327036715,1715728243374,-200.0,0.0002,2]
[327036717,1715728243383,-15607.17221832,0.0002,2]
[327036734,1715728243741,-533.58561713,0.0002,2]
[327036947,1715728246541,-0.01998376,0.00019823,2]
[327037893,1715728446973,877.27905048,0.0001,2]
[327037894,1715728599702,442.86248838,0.0001,2]
[327037895,1715728737421,1000.54043172,0.00018,3]
[327037896,1715728832095,500.0,0.00023,30]
[327037897,1715728947991,154.84515485,9.999e-05,2]
[327037898,1715728990429,238.60242952,9.999e-05,2]
[327037899,1715729116606,2450.7701248,0.0001691,2]
[327037900,1715729246403,24900.0,0.00016894,2]
[327037901,1715729364157,157.27495146,9.999e-05,2]
[327037976,1715729434230,-2595.37774588,0.00017838,2]
[327037978,1715729434240,-513.01214525,0.00017839,2]
[327037980,1715729434250,-225.17170973,0.0001785,2]
[327037982,1715729434260,-10445.8349353,0.00017898,2]
[327037984,1715729434270,-895.23409997,0.00018,2]
[327037986,1715729434280,-250.0,0.00018334,2]
[327037988,1715729434291,-177.622956,0.00018544,2]
[327037990,1715729434301,-1537.93437571,0.000189,2]
[327037992,1715729434311,-175.983526,0.00019178,2]
[327037994,1715729434321,-770.8,0.00019715,2]
[327037996,1715729434330,-263.6,0.00019722,2]
[327037998,1715729434339,-1647.01590178,0.00019802,2]
[327038000,1715729434349,-225.1717097,0.00019977,2]
[327038002,1715729434358,-200.0,0.0002,2]
[327038004,1715729434368,-770.8,0.00020787,2]
[327038006,1715729434378,-154.84515485,0.00020791,2]
[327038008,1715729434387,-263.6,0.00020792,2]
[327038010,1715729434398,-190.3096903,0.00020912,2]
[327038012,1715729434407,-26655.91045103,0.00020912,2]
[327038014,1715729434417,-186.9933686,0.00020913,2]
[327038016,1715729434427,-1881.64683371,0.00020913,2]
[327038019,1715729434437,-12977.41038104,0.00020913,2]
[327038021,1715729434446,-770.8,0.00021858,2]
[327038022,1715729434456,-263.6,0.00021863,2]
[327038024,1715729434465,-225.1717097,0.00022103,2]
[327038026,1715729434475,-299.996,0.00022192,2]
[327038028,1715729434485,-770.8,0.00022929,2]
[327038030,1715729434494,-263.6,0.00022934,2]
[327038032,1715729434504,-151.34866798,0.00022954,2]
[327038035,1715729434514,-1537.93437571,0.000239,2]
[327038036,1715729434523,-770.8,0.00024,3]
[327038038,1715729434533,-263.6,0.00024004,3]
[327038056,1715729434682,-225.1717097,0.0002423,2]
[327038058,1715729434692,-620.00908819,0.00024858,2]
[327038060,1715729434702,-758.819217,0.00025,2]
[327038062,1715729434711,-309.4430026,0.00025,2]
[327038064,1715729434721,-400.46869514,0.00025,2]
[327038066,1715729434731,-770.8,0.00025072,3]
[327038068,1715729434740,-167.30505147,0.00025074,2]
[327038070,1715729434750,-263.6,0.00025075,3]
[327038072,1715729434759,-153.2765179,0.00025674,2]
[327038074,1715729434770,-153.0,0.00025674,2]
[327038076,1715729434779,-164.7596114,0.00025674,2]
[327038078,1715729434789,-153.0,0.00025674,2]
[327038080,1715729434798,-153.0,0.00025674,2]
[327038082,1715729434808,-153.0,0.00025674,2]
[327038084,1715729434818,-153.0,0.00025674,2]
[327038086,1715729434827,-153.0,0.00025674,2]
[327038088,1715729434837,-153.0,0.00025674,2]
[327038090,1715729434846,-153.0,0.00025674,2]
[327038092,1715729434857,-153.0,0.00025674,2]
[327038094,1715729434867,-153.0,0.00025674,2]
[327038096,1715729434876,-153.0,0.00025674,2]
[327038098,1715729434886,-153.0,0.00025674,2]
[327038100,1715729434897,-153.0,0.00025674,2]
[327038102,1715729434906,-153.0,0.00025674,2]
[327038104,1715729434916,-194.3973942,0.00026028,2]
[327038106,1715729434925,-620.00045441,0.00026101,2]
[327038108,1715729434935,-770.8,0.00026143,3]
[327038110,1715729434944,-263.6,0.00026146,3]
[327038112,1715729434953,-307.6001337,0.00026188,2]
[327038113,1715729434963,-225.1717097,0.00026356,2]
[327038116,1715729434972,-153.0,0.00026496,2]
[327038117,1715729434982,-153.0,0.00026496,2]
[327038120,1715729434991,-153.0,0.00026496,2]
[327038121,1715729435000,-153.0,0.00026496,2]
[327038123,1715729435010,-153.0,0.00026496,2]
[327038126,1715729435020,-153.0,0.00026496,2]
[327038127,1715729435029,-306.0,0.00026496,2]
[327038130,1715729435039,-153.0,0.00026496,2]
[327038132,1715729435051,-153.0,0.00026496,2]
[327038134,1715729435061,-153.0,0.00026496,2]
[327038135,1715729435071,-500.0,0.00026558,2]
[327038137,1715729435081,-375.63203,0.00027123,2]
[327038139,1715729435092,-523.72141227,0.00027199,2]
[327038142,1715729435102,-300.50511497,0.00027199,2]
[327038144,1715729435112,-500.0,0.00027199,2]
[327038145,1715729435122,-500.0,0.00027199,2]
[327038148,1715729435135,-500.0,0.00027199,2]
[327038150,1715729435144,-500.0,0.00027199,2]
[327038151,1715729435154,-500.0,0.00027199,2]
[327038154,1715729435163,-438.22206556,0.00027199,2]
[327038156,1715729435173,-259.91658442,0.00027199,2]
[327038158,1715729435183,-19794.97943848,0.000272,2]
[327038160,1715729435193,-15903.71,0.00027206,3]
[327038162,1715729435203,-770.8,0.00027214,3]
[327038164,1715729435212,-263.6,0.00027216,3]
[327038165,1715729435222,-446.24337691,0.00027395,2]
[327038168,1715729435232,-941.38915188,0.00027395,2]
[327038170,1715729435242,-667.82273125,0.00027395,2]
[327038171,1715729435252,-1935.05026464,0.00027395,2]
[327038174,1715729435262,-896.17200352,0.00027396,2]
[327038175,1715729435271,-16623.51,0.00027397,2]
[327038177,1715729435281,-5020.6399496,0.00027397,2]
[327038213,1715729435610,-1929.44365926,0.00027397,2]
[327038420,1715729438550,-9673.42639114,0.00027397,2]
[327038422,1715729438560,-11822.31068405,0.00027397,2]
[327038612,1715729440766,-157.27495146,0.00026027,2]
[327038614,1715729440776,-1842.72504854,0.00027397,2]
[327040655,1715730176988,834.89269963,9.999e-05,2]
[327040656,1715730180240,24900.0,0.00016999,2]
[327040657,1715730199213,177.622956,0.00016996,2]
[327040689,1715730632446,-1086.3237768,0.00017888,2]
[327040690,1715730632458,-1509.05396908,0.00017888,2]
[327040692,1715730632468,-519.84555857,0.00017888,2]
[327040725,1715730632772,-315.04714106,0.00017888,2]
[327040726,1715730632782,-3060.26446828,0.00017889,2]
[327040727,1715730632925,-10445.8349353,0.00017898,2]
[327040728,1715730632936,-1066.97229806,0.000179,2]
[327040729,1715730632946,-99397.89272691,0.00017996,2]
[327040776,1715730640744,-249.993024,0.00017996,2]
[327040778,1715730640762,-4603.96636685,0.00017996,2]
[327040781,1715730640775,-641.86376226,0.00017997,2]
[327040783,1715730640787,-448.815542,0.00017997,2]
[327040786,1715730640802,-1896.23906673,0.00017997,2]
[327040788,1715730640817,-491.58653026,0.00017997,2]
[327040790,1715730640831,-355.25334749,0.00017998,2]
[327040793,1715730640844,-7359.38575588,0.00018,2]
[327040795,1715730640858,-846.58593615,0.000189,2]
[327040798,1715730640870,-500.0,0.00019178,2]
[327040800,1715730640883,-165.59452229,0.00019178,2]
[327040802,1715730640895,-527.97497533,0.00019178,2]
[327040805,1715730640908,-380.91976202,0.00019178,2]
[327040807,1715730640921,-157.51932784,0.00019178,2]
[327040809,1715730640935,-498.35169575,0.00019178,2]
[327040812,1715730640948,-500.0,0.00019178,2]
[327040814,1715730640960,-226.27498942,0.00019178,2]
[327040817,1715730640973,-405.58132329,0.00019178,2]
[327040819,1715730640985,-1042.0,0.00019907,2]
[327040821,1715730640998,-3041.36384109,0.00019908,2]
[327040824,1715730641011,-20860.40381628,0.0002,2]
[327040826,1715730641023,-52568.60896275,0.0002,2]
[327040829,1715730641035,-4243.73438834,0.0002,2]
[327040831,1715730641048,-43782.18661373,0.0002,2]
[327040833,1715730641061,-151.0,0.0002,2]
[327040836,1715730641074,-151.0,0.0002,2]
[327040838,1715730641086,-151.0,0.0002,2]
[327040840,1715730641099,-14041.30510832,0.0002,2]
[327044255,1715730693173,238.60242952,9.999e-05,2]
[327044256,1715730755153,315.84581765,9.999e-05,2]
[327044257,1715730778171,19232.33594967,9.999e-05,2]
[327044258,1715730781047,208.72073891,9.999e-05,2]
[327044259,1715730794068,2303.3641984,9.999e-05,2]
[327044261,1715731039368,528.07938257,9.999e-05,2]
[327044267,1715731094761,273.85089148,0.000165,2]
[327044268,1715731208143,158.37912869,9.999e-05,2]
[327044269,1715731276771,2082.02413978,9.999e-05,2]
[327044270,1715731288316,227.26029073,9.999e-05,2]
[327044286,1715731294142,880.22323369,9.999e-05,2]
[327044287,1715731296195,16108.00888911,9.999e-05,2]
[327044288,1715731346701,2084.90379946,9.999e-05,2]
[327044289,1715731366701,2084.90379946,9.999e-05,2]
[327044290,1715731400710,2086.67556332,9.999e-05,2]
[327044291,1715731422701,2086.67556332,9.999e-05,2]
[327044292,1715731452709,315.84581765,9.999e-05,2]
[327044293,1715731470716,2081.36027174,9.999e-05,2]
[327044294,1715731490720,2087.76390066,9.999e-05,2]
[327044295,1715731512795,2085.58722598,9.999e-05,2]
[327044296,1715731532756,1296.32342244,9.999e-05,2]
[327044297,1715731630466,406.20357162,9.999e-05,2]
[327044323,1715731832698,-474.52789253,0.00017079,2]
[327044325,1715731832711,-2120.84985335,0.00017079,2]
[327044327,1715731832720,-1808.54293684,0.0001708,2]
[327044329,1715731832732,-755.16902667,0.0001708,2]
[327044332,1715731832748,-500.0,0.0001708,2]
[327044733,1715731838905,-7341.98241547,0.0001708,2]
[327044734,1715731838917,-1570.92564338,0.0001708,2]
[327044770,1715731840871,-2479.8072509,0.0001708,2]
[327044771,1715731840929,-10443.57272674,0.0001708,2]
[327044772,1715731840939,-250.0,0.00017265,2]
[327044773,1715731840948,-166.7229165,0.00017358,2]
[327044774,1715731840958,-10445.8349353,0.00017898,2]
[327044775,1715731840969,-895.23409997,0.00018,2]
[327044776,1715731840979,-510.321266,0.00018167,2]
[327044777,1715731840988,-564.3906241,0.000189,2]
[327044778,1715731840998,-930.17254207,0.00018996,2]
[327044779,1715731841009,-874.04576675,0.00019743,2]
[327044780,1715731841054,-772.97013503,0.00019743,2]
[327044782,1715731841063,-913.57739556,0.00019899,2]
[327044783,1715731841072,-176.33,0.00019988,3]
[327044785,1715731841082,-238.89604371,0.00019996,2]
[327044786,1715731841091,-411.82401176,0.00019996,2]
[327044787,1715731841100,-206.96693214,0.00019996,2]
[327044788,1715731841109,-708.68781589,0.00019996,2]
[327044789,1715731841120,-186.62571484,0.00019996,2]
[327044790,1715731841130,-412.9630023,0.00019996,2]
[327044791,1715731841139,-447.34798474,0.00019996,2]
[327044792,1715731841149,-183.83933864,0.00019996,2]
[327044793,1715731841158,-527.41372222,0.00019996,2]
[327044794,1715731841168,-272.75631499,0.00019996,2]
[327044795,1715731841178,-154.94365812,0.00019996,2]
[327044796,1715731841187,-158.88909646,0.00019996,2]
[327044797,1715731841197,-235.94735749,0.00019996,2]
[327044798,1715731841208,-338.51595891,0.00019996,2]
[327044799,1715731841218,-536.17800498,0.00019996,2]
[327044800,1715731841227,-163.93590849,0.00019997,2]
[327044801,1715731841237,-194.1642929,0.00019997,2]
[327044802,1715731841247,-292.18119126,0.00019997,2]
[327044803,1715731841256,-2785.94337812,0.00019997,2]
[327044804,1715731841265,-377.53704087,0.00019997,2]
[327044805,1715731841274,-173.82056712,0.00019997,2]
[327044806,1715731841283,-500.0,0.00019997,2]
[327044807,1715731841293,-281.79399764,0.00019997,2]
[327044808,1715731841302,-500.0,0.00019997,2]
[327044809,1715731841311,-500.0,0.00019997,2]
[327044810,1715731841320,-490.07591234,0.00019997,2]
[327044811,1715731841329,-500.0,0.00019997,2]
[327044812,1715731841339,-500.0,0.00019997,2]
[327044813,1715731841349,-392.5,0.00019997,2]
[327044814,1715731841360,-155.07356579,0.00019998,2]
[327044815,1715731841369,-52620.63795536,0.00019998,2]
[327044864,1715731843849,-309.64391646,0.00019,2]
[327044865,1715731843859,-27107.3757889,0.00019998,2]
[327044866,1715731843868,-285.9231726,0.00019999,2]
[327044867,1715731843879,-3060.26446828,0.00019999,2]
[327044868,1715731843890,-12502.56434094,0.0002,2]
[327044917,1715731906627,154.82968734,9.999e-05,2]
[327044918,1715731929586,522.20632925,9.999e-05,2]
[327044919,1715731983044,154.82968734,9.999e-05,2]
[327044920,1715732554857,-765.481899,0.00017366,2]
[327044921,1715732554878,-24900.0,0.00017415,2]
[327044922,1715732554898,-10445.8349353,0.00017898,2]
[327044923,1715732554917,-5000.0,0.00018,2]
[327044924,1715732554937,-189.77637659,0.00018,2]
[327044925,1715732554957,-895.23409997,0.00018,2]
[327044926,1715732554977,-5026.77268914,0.000183,2]
[327044927,1715732607322,-4193.22731086,0.000183,2]
[327044928,1715732607343,-209.32057249,0.00018792,2]
[327044929,1715732607363,-597.45211665,0.00018892,2]
[327044931,1715732705123,260.91918383,9.999e-05,2]
[327044952,1715733031848,-2676.97049033,0.00017896,2]
[327044953,1715733031858,-59359.862772,0.00017896,2]
[327044954,1715733031867,-18114.8009424,0.00017897,2]
[327044955,1715733031877,-737.986863,0.00018359,2]
[327044956,1715733031886,-10445.8349353,0.00018792,2]
[327044957,1715733031895,-26156.78446148,0.00018794,2]
[327044958,1715733031905,-1538.63785774,0.000189,2]
[327044959,1715733031914,-173.0,0.00019,2]
[327044960,1715733031923,-345.1003981,0.00019149,2]
[327044962,1715733031933,-189.596847,0.00019178,2]
[327044963,1715733031942,-1647.01590178,0.00019917,2]
[327044965,1715733031952,-576.2557414,0.00019999,2]
[327044967,1715733031961,-500.0,0.00019999,2]
[327044969,1715733031970,-500.0,0.00019999,2]
[327044971,1715733031979,-457.68977259,0.00019999,2]
[327044973,1715733031989,-500.0,0.00019999,2]
[327044975,1715733031998,-500.0,0.00019999,2]
[327044977,1715733032008,-500.0,0.00019999,2]
[327044979,1715733032017,-500.0,0.00019999,2]
[327044981,1715733032026,-500.0,0.00019999,2]
[327044982,1715733032035,-500.0,0.00019999,2]
[327044984,1715733032044,-360.0,0.00019999,2]
[327044986,1715733032053,-500.0,0.00019999,2]
[327044988,1715733032062,-23451.79691321,0.0002,2]
[327044990,1715733032074,-7396.7541976,0.0002,2]
[327045032,1715733038060,-527.65448748,0.00019178,2]
[327045189,1715733040285,-69.11783379,0.00019178,2]
[327045190,1715733040297,-340.2,0.00019999,2]
[327045191,1715733040308,-284.70463544,0.00019999,2]
[327045192,1715733040318,-500.0,0.00019999,2]
[327045193,1715733040329,-358.53011763,0.00019999,2]
[327045194,1715733040341,-500.0,0.00019999,2]
[327045195,1715733040351,-213.0104226,0.00019999,2]
[327045196,1715733040361,-500.0,0.00019999,2]
[327045197,1715733040371,-267.83115858,0.00019999,2]
[327045198,1715733040381,-214.57686814,0.00019999,2]
[327045199,1715733040391,-500.0,0.00019999,2]
[327045200,1715733040401,-485.05813097,0.00019999,2]
[327045201,1715733040412,-453.06471453,0.00019999,2]
[327045202,1715733040422,-10488.74304284,0.0002,2]
[327045203,1715733040432,-205.141809,0.0002,2]
[327045204,1715733040443,-391.98880169,0.000203,2]
[327045205,1715733040453,-3121.26999524,0.000203,2]
[327045206,1715733040463,-1579.81192403,0.00020811,2]
[327045207,1715733040473,-893.79252193,0.00020909,2]
[327045208,1715733040485,-229.52927661,0.00020909,2]
[327045209,1715733040496,-239.88539167,0.00020909,2]
[327045210,1715733040506,-2792.7493606,0.00020909,2]
[327045211,1715733040516,-20232.47978653,0.00020911,2]
[327045212,1715733040527,-159.48065749,0.00020911,2]
[327045213,1715733040537,-419.19600137,0.00020911,2]
[327045214,1715733040547,-154.84515485,0.00020911,2]
[327045215,1715733040557,-9493.97922932,0.00020912,2]
[327045216,1715733040568,-1716.72807354,0.00020912,2]
[327045217,1715733040578,-9327.50568843,0.00020913,2]
[327045218,1715733040592,-8972.2133978,0.00020913,2]
[327045219,1715733040604,-16283.86720985,0.00020913,2]
[327045236,1715733045973,-30416.91515293,0.00020913,2]
[327045237,1715733045983,-151.0,0.00020913,2]
[327045238,1715733045992,-151.0,0.00020913,2]
[327045239,1715733046002,-151.0,0.00020913,2]
[327045240,1715733046012,-151.0,0.00020913,2]
[327045241,1715733046021,-151.0,0.00020913,2]
[327045242,1715733046031,-196.274176,0.00020913,2]
[327045243,1715733046041,-186.46371228,0.00020999,2]
[327045244,1715733046050,-237.09708281,0.00021,2]
[327045245,1715733046060,-10031.33126752,0.00021,2]
[327045246,1715733046069,-197.65904078,0.00021,2]
[327045247,1715733046078,-2755.85853136,0.00021678,2]
[327045248,1715733046087,-257.0,0.00021885,2]
[327045250,1715733046097,-150.0,0.00021885,2]
[327045251,1715733046106,-166.666666,0.00021918,2]
[327045253,1715733046116,-159.57946618,0.00022,2]
[327045254,1715733046125,-1579.81192399,0.00022159,2]
[327045255,1715733046135,-154.75239617,0.000223,2]
[327045256,1715733046146,-621.13109637,0.00022344,2]